fUST/lending_fUST_20251230
["ID","MTS","AMOUNT","RATE_DAILY","PERIOD"]
[400057563,1767055853870,-642.79198527,0.000339,120]
[400057564,1767055853880,-346.82422017,0.000339,120]
[400057565,1767055853889,-629.25078248,0.000339,120]
[400057566,1767055853899,-993.0,0.00033937,2]
[400057567,1767055853909,-1500.0,0.00033973,5]
[400057568,1767055853919,-464.80913509,0.00033973,5]
[400057569,1767055853929,-151.0,0.00033994,31]
[400057570,1767055853939,-151.0,0.00033994,7]
[400057571,1767055853948,-1032.25644587,0.00034,2]
[400057572,1767055853957,-50000.0,0.00034,14]
[400057573,1767055853967,-197.03,0.00034,2]
[400057574,1767055853977,-151.0,0.00034,31]
[400057575,1767055853987,-5000.0,0.00034,120]
[400057576,1767055853995,-1017.0,0.00034,7]
[400057577,1767055854005,-993.0,0.00034012,2]
[400057578,1767055854015,-1808.85,0.00034024,30]
[400057579,1767055854024,-15277.58765547,0.00034061,2]
[400057580,1767055854033,-2002.32,0.000341,30]
[400057581,1767055854043,-2000.0,0.00034173,7]
[400057582,1767055854052,-1672.0,0.00034191,2]
[400057583,1767055854062,-217.76,0.000342,2]
[400057584,1767055854072,-1517.79,0.00034246,36]
[400057585,1767055854081,-160.0,0.00034296,5]
[400057586,1767055854091,-993.0,0.00034417,2]
[400057587,1767055854100,-993.0,0.00034439,2]
[400057588,1767055854109,-5000.0,0.000345,120]
[400057589,1767055854119,-732.72792841,0.00034521,5]
[400057590,1767055854128,-350.0,0.00034521,5]
[400057591,1767055854137,-3831.07331819,0.00034542,7]
[400057592,1767055854146,-705.32499773,0.00034577,30]
[400057593,1767055854156,-321.5,0.0003461,6]
[400057594,1767055854166,-233247.68214185,0.0003465,4]
[400057595,1767055854175,-1380.01648111,0.00034728,12]
[400057596,1767055854184,-1672.0,0.00034752,7]
[400057597,1767055854194,-377.3687661,0.00034767,30]
[400057598,1767055854203,-3628.48,0.0003478,60]
[400057599,1767055854213,-151.86,0.0003478,60]
[400057600,1767055854222,-150.59,0.0003478,60]
[400057601,1767055854231,-166.99779971,0.0003478,60]
[400057602,1767055854241,-1517.79,0.00034794,37]
[400057603,1767055854252,-3628.48,0.0003488,60]
[400057604,1767055854261,-151.86,0.0003488,60]
[400057605,1767055854271,-150.59,0.0003488,60]
[400057606,1767055854280,-150.58,0.00034895,60]
[400057607,1767055854291,-553.38184303,0.000349,120]
[400057608,1767055854300,-264.53176589,0.000349,120]
[400057609,1767055854309,-737.27505825,0.000349,120]
[400057610,1767055854319,-688.09260488,0.000349,120]
[400057611,1767055854328,-642.79198527,0.000349,120]
[400057612,1767055854404,-346.82422017,0.000349,120]
[400057613,1767055854414,-629.25078248,0.000349,120]
[400057614,1767055854424,-633.85469,0.000349,120]
[400057615,1767055854433,-993.0,0.00034972,2]
[400057616,1767055854443,-3628.48,0.0003498,60]
[400057617,1767055854452,-151.86,0.0003498,60]
[400057618,1767055854462,-150.59,0.0003498,60]
[400057619,1767055854471,-40487.06041576,0.00035,14]
[400057620,1767055854480,-10757.12149208,0.00035,2]
[400057621,1767055854490,-660.06746401,0.00035,2]
[400057622,1767055854501,-854.83525832,0.00035,60]
[400057623,1767055854512,-1643.20234632,0.00035,30]
[400057624,1767055854521,-1653.64701415,0.00035,15]
[400057625,1767055854531,-1266.7348713,0.00035,120]
[400057626,1767055854541,-150.1,0.00035,30]
[400057627,1767055854551,-5000.0,0.00035,120]
[400057628,1767055854561,-1017.0,0.00035,7]
[400057629,1767055854571,-3628.48,0.0003508,60]
[400057630,1767055854581,-151.86,0.0003508,60]
[400057631,1767055854591,-150.59,0.0003508,60]
[400057632,1767055854601,-197.03,0.000351,2]
[400057633,1767055854611,-160.0,0.00035104,6]
[400057634,1767055854621,-1000.0,0.00035112,30]
[400057635,1767055854630,-1000.0,0.00035112,30]
[400057636,1767055854640,-1000.0,0.00035112,30]
[400057637,1767055854650,-715.0,0.00035112,30]
[400057638,1767055854659,-447.0,0.00035174,120]
[400057639,1767055854669,-1672.0,0.00035178,2]
[400057640,1767055854678,-3628.491,0.0003518,60]
[400057641,1767055854688,-151.86,0.0003518,60]
[400057642,1767055854697,-150.59,0.0003518,60]
[400057643,1767055854707,-993.0,0.00035214,2]
[400057644,1767055854716,-993.0,0.00035223,2]
[400057645,1767055854726,-2034.96,0.0003524,30]
[400057646,1767055854735,-151.86,0.0003528,60]
[400057647,1767055854744,-150.59,0.0003528,60]
[400057648,1767055854754,-428.0,0.000353,2]
[400057649,1767055854764,-1517.79,0.00035342,38]
[400057650,1767055854774,-450.0,0.00035342,5]
[400057651,1767055854784,-151.86,0.0003538,60]
[400057652,1767055854793,-150.59,0.0003538,60]
[400057653,1767055854803,-202.95469,0.000354,120]
[400057654,1767055854812,-2477.790854,0.000354,24]
[400057655,1767055854822,-205.0,0.0003547,41]
[400057656,1767055854831,-151.86,0.0003548,60]
[400057657,1767055854840,-150.59,0.0003548,60]
[400057658,1767055854849,-705.32499773,0.00035493,30]
[400057659,1767055854859,-5000.0,0.000355,120]
[400057660,1767055854869,-151.86,0.0003558,60]
[400057661,1767055854878,-150.59,0.0003558,60]
[400057662,1767055854887,-376.253583,0.00035589,30]
[400057663,1767055854898,-376.253583,0.00035589,30]
[400057664,1767055854908,-1662.42816966,0.0003561,7]
[400057665,1767055854918,-151.0,0.00035616,31]
[400057666,1767055854927,-151.0,0.00035616,31]
[400057667,1767055854937,-178.07473616,0.00035616,2]
[400057668,1767055854947,-2000.0,0.00035629,7]
[400057669,1767055854956,-1674.0,0.00035631,2]
[400057670,1767055854965,-200.0,0.00035672,120]
[400057671,1767055854975,-151.86,0.0003568,60]
[400057672,1767055854985,-150.59,0.0003568,60]
[400057673,1767055854994,-200.0,0.00035763,120]
[400057674,1767055855004,-151.86,0.0003578,60]
[400057675,1767055855014,-150.59,0.0003578,60]
[400057676,1767055855023,-15277.58765547,0.00035826,2]
[400057677,1767055855034,-308.4715212,0.00035863,30]
[400057678,1767055855043,-204.8804204,0.00035863,30]
[400057679,1767055855053,-303.3053281,0.00035863,30]
[400057680,1767055855062,-151.86,0.0003588,60]
[400057681,1767055855073,-150.59,0.0003588,60]
[400057682,1767055855082,-1517.79,0.0003589,39]
[400057683,1767055855091,-1984.534635,0.000359,24]
[400057684,1767055855101,-1500.0,0.000359,24]
[400057685,1767055855111,-160.0,0.00035913,7]
[400057686,1767055855120,-993.0,0.00035942,2]
[400057687,1767055855130,-151.86,0.0003598,60]
[400057688,1767055855140,-150.7,0.0003598,60]
[400057689,1767055855150,-500.0,0.00035991,14]
[400057690,1767055855160,-151.5,0.00036,120]
[400057691,1767055855170,-5000.0,0.00036,120]
[400057692,1767055855179,-200.0,0.00036047,120]
[400057693,1767055855188,-993.0,0.00036057,2]
[400057694,1767055855198,-151.86,0.0003608,60]
[400057695,1767055855208,-321.5,0.00036122,30]
[400057696,1767055855217,-3887.6595,0.0003615,2]
[400057697,1767055855226,-251.745364,0.0003615,31]
[400057698,1767055855236,-151.0,0.0003615,31]
[400057699,1767055855246,-151.0,0.0003615,31]
[400057700,1767055855255,-151.0,0.0003615,31]
[400057701,1767055855264,-550.0,0.00036164,5]
[400057702,1767055855274,-151.86,0.0003618,60]
[400057703,1767055855283,-3887.6595,0.0003625,2]
[400057704,1767055855293,-127741.90399964,0.00036265,7]
[400057705,1767055855303,-151.8825,0.0003628,60]
[400057706,1767055855312,-161.9855,0.00036365,2]
[400057707,1767055855322,-1000.0,0.000364,24]
[400057708,1767055855331,-1500.0,0.000364,24]
[400057709,1767055855341,-705.32499773,0.00036408,30]
[400057710,1767055855350,-1517.79,0.00036438,40]
[400057711,1767055855360,-2261.06,0.00036455,30]
[400057712,1767055855370,-161.9855,0.00036465,2]
[400057713,1767055855379,-627.0,0.00036498,2]
[400057714,1767055855389,-2156.0,0.00036498,2]
[400057715,1767055855399,-1364.0,0.00036498,2]
[400057716,1767055855409,-633.85469,0.000365,120]
[400057717,1767055855419,-5000.0,0.000365,120]
[400057718,1767055855429,-4374.16793367,0.00036506,2]
[400057719,1767055855439,-161.9855,0.00036565,2]
[400057720,1767055855449,-641.391581,0.00036595,8]
[400057721,1767055855458,-641.39158094,0.00036595,8]
[400057722,1767055855467,-641.39158094,0.00036595,8]
[400057723,1767055855476,-641.39158094,0.00036595,8]
[400057724,1767055855486,-641.39158094,0.00036595,8]
[400057725,1767055855496,-641.39158094,0.00036595,8]
[400057726,1767055855508,-641.39158094,0.00036595,8]
[400057727,1767055855518,-641.39158094,0.00036595,8]
[400057728,1767055855528,-641.39158094,0.00036595,8]
[400057729,1767055855537,-641.39158094,0.00036595,8]
[400057730,1767055855547,-641.39158094,0.00036595,8]
[400057731,1767055855556,-641.39158094,0.00036595,8]
[400057732,1767055855566,-641.39158094,0.00036595,8]
[400057733,1767055855575,-641.39158094,0.00036595,8]
[400057734,1767055855586,-500.0,0.0003663,30]
[400057735,1767055855596,-500.0,0.0003663,30]
[400057736,1767055855605,-500.0,0.0003663,30]
[400057737,1767055855614,-500.0,0.0003663,30]
[400057738,1767055855624,-500.0,0.0003663,30]
[400057739,1767055855633,-500.0,0.0003663,30]
[400057740,1767055855642,-500.0,0.0003663,30]
[400057741,1767055855651,-500.0,0.0003663,30]
[400057742,1767055855660,-500.0,0.0003663,30]
[400057743,1767055855669,-500.0,0.0003663,30]
[400057744,1767055855678,-500.0,0.0003663,30]
[400057745,1767055855688,-500.0,0.0003663,30]
[400057746,1767055855764,-500.0,0.0003663,30]
[400057747,1767055855775,-599.02003525,0.0003663,30]
[400057748,1767055855785,-500.0,0.0003663,30]
[400057749,1767055855795,-500.0,0.0003663,30]
[400057750,1767055855805,-500.0,0.0003663,30]
[400057751,1767055855814,-500.0,0.0003663,30]
[400057752,1767055855824,-500.0,0.0003663,30]
[400057753,1767055855834,-500.0,0.0003663,30]
[400057754,1767055855843,-161.9855,0.00036665,2]
[400057755,1767055855853,-303.3053281,0.00036685,30]
[400057756,1767055855863,-303.3053281,0.00036685,30]
[400057757,1767055855872,-160.0,0.00036721,8]
[400057758,1767055855882,-153.0,0.00036749,30]
[400057759,1767055855892,-161.9855,0.00036765,2]
[400057760,1767055855901,-608.6274177,0.00036767,30]
[400057761,1767055855911,-1000.0,0.000369,24]
[400057762,1767055855921,-1500.0,0.000369,24]
[400057763,1767055855931,-596.1485617,0.00036912,60]
[400057764,1767055855940,-1517.79,0.00036986,41]
[400057765,1767055855951,-650.0,0.00036986,5]
[400057766,1767055855960,-156.88,0.00037,7]
[400057767,1767055855970,-5000.0,0.00037,120]
[400057768,1767055855980,-2000.0,0.00037086,7]
[400057769,1767055855990,-474.0,0.00037174,120]
[400057770,1767055855999,-705.32499773,0.00037323,30]
[400057771,1767055856009,-168.803854,0.00037334,31]
[400057772,1767055856018,-151.0,0.00037334,31]
[400057773,1767055856028,-151.0,0.00037334,31]
[400057774,1767055856037,-151.0,0.00037334,31]
[400057775,1767055856047,-1836.079856,0.0003734,11]
[400057776,1767055856056,-1000.0,0.0003736,11]
[400057777,1767055856066,-1000.0,0.0003738,11]
[400057778,1767055856075,-1202.110064,0.0003738,11]
[400057779,1767055856085,-786.798742,0.0003738,31]
[400057780,1767055856094,-786.798742,0.0003738,31]
[400057781,1767055856103,-786.798742,0.0003738,31]
[400057782,1767055856112,-786.798742,0.0003738,31]
[400057783,1767055856122,-151.0,0.0003738,31]
[400057784,1767055856131,-151.0,0.0003738,31]
[400057785,1767055856140,-151.0,0.0003738,31]
[400057786,1767055856150,-167.502473,0.0003738,31]
[400057787,1767055856159,-167.502473,0.0003738,31]
[400057788,1767055856168,-167.502473,0.0003738,31]
[400057789,1767055856177,-167.502473,0.0003738,31]
[400057790,1767055856187,-94860.74862821,0.00037392,18]
[400057791,1767055856197,-151.0,0.00037396,31]
[400057792,1767055856206,-151.0,0.00037396,31]
[400057793,1767055856216,-151.0,0.00037396,31]
[400057794,1767055856226,-151.0,0.00037396,31]
[400057795,1767055856237,-151.0,0.00037396,31]
[400057796,1767055856247,-151.0,0.00037396,30]
[400057797,1767055856257,-151.0,0.00037396,31]
[400057798,1767055856267,-322.881004,0.00037396,31]
[400057799,1767055856277,-322.881004,0.00037396,31]
[400057800,1767055856286,-322.881004,0.00037396,31]
[400057801,1767055856296,-322.881004,0.00037396,31]
[400057802,1767055856306,-1000.0,0.000374,11]
[400057803,1767055856316,-1000.0,0.000374,11]
[400057804,1767055856326,-1000.0,0.000374,24]
[400057805,1767055856336,-1500.0,0.000374,24]
[400057806,1767055856345,-369.0,0.00037513,120]
[400057807,1767055856355,-160.0,0.0003753,9]
[400057808,1767055856365,-206.41151131,0.0003753,5]
[400057809,1767055856374,-1517.79,0.00037534,42]
[400057810,1767055856383,-200.0,0.00037579,10]
[400057811,1767055856393,-151.0,0.0003758,31]
[400057812,1767055856402,-151.047453,0.0003758,31]
[400057813,1767055856412,-151.0,0.0003758,31]
[400057814,1767055856421,-166.315879,0.0003758,31]
[400057815,1767055856431,-151.0,0.0003758,31]
[400057816,1767055856441,-151.0,0.0003758,31]
[400057817,1767055856450,-180.604464,0.0003758,31]
[400057818,1767055856460,-151.0,0.0003758,31]
[400057819,1767055856470,-180.604464,0.0003758,31]
[400057820,1767055856479,-180.604464,0.0003758,31]
[400057821,1767055856489,-180.604464,0.0003758,31]
[400057822,1767055856499,-151.0,0.0003758,31]
[400057823,1767055856511,-151.0,0.0003758,31]
[400057824,1767055856521,-15277.58765547,0.00037592,2]
[400057825,1767055856530,-151.0,0.00037595,31]
[400057826,1767055856540,-641.39158094,0.00037595,9]
[400057827,1767055856550,-201.66,0.00037635,7]
[400057828,1767055856560,-454.12303575,0.00037635,14]
[400057829,1767055856569,-321.5,0.00037635,120]
[400057830,1767055856581,-168.57562721,0.00037644,30]
[400057831,1767055856590,-150.58,0.00037649,60]
[400057832,1767055856600,-2242.88,0.00037649,60]
[400057833,1767055856610,-14083.41649427,0.00037692,5]
[400057834,1767055856619,-173245.08875627,0.00037692,5]
[400057835,1767055856628,-5000.0,0.00037692,2]
[400057836,1767055856638,-1952.62412605,0.00037692,5]
[400057837,1767055856647,-330.67,0.00037692,2]
[400057838,1767055856656,-1905436.31300966,0.00037692,20]
[400057839,1767055856745,-41217.79320522,0.00037692,20]
[400057840,1767055856754,-5000.0,0.00037692,20]
[400057841,1767055856764,-150.0,0.00037692,10]
[400057842,1767055856773,-301260.45278925,0.00037692,20]
[400057843,1767055856845,-994.31,0.00024383,2]
[400057844,1767055856854,-994.31,0.00024657,2]
[400057845,1767055856864,-994.31,0.00024931,2]
[400057846,1767055856873,-994.31,0.00025205,2]
[400057847,1767055856949,-994.31,0.00025479,2]
[400057848,1767055856960,-994.31,0.00025753,2]
[400057849,1767055856969,-994.31,0.00026027,2]
[400057850,1767055856978,-994.31,0.00026301,2]
[400057851,1767055856987,-731.46922255,0.00028253,2]
[400057852,1767055856997,-7453.25077745,0.00037692,20]
[400057853,1767055857011,-650.76259487,0.00026575,2]
[400057854,1767055857023,-250.77106545,0.00026575,2]
[400057855,1767055858124,-3e-08,0.00026575,2]
[400057856,1767055858436,-92.77633965,0.00026575,2]
[400057857,1767055858447,-246.00101222,0.00037692,20]
[400057858,1767055858459,-37224.11725473,0.00037692,20]
[400057859,1767055858468,-660216.53467162,0.00037692,20]
[400057860,1767055858479,-434.0,0.00037692,20]
[400057861,1767055858491,-4064.26690186,0.00037692,20]
[400057862,1767055858647,-994.31,0.00026849,2]
[400057863,1767055858657,-994.31,0.00027123,2]
[400057864,1767055858667,-994.31,0.00027397,2]
[400057865,1767055858677,-994.31,0.00027671,2]
[400057866,1767055858687,-994.31,0.00027945,2]
[400057867,1767055858698,-994.35737078,0.00028219,2]
[400057868,1767055858707,-1645.80575074,0.00028253,2]
[400057869,1767055858717,-2046.06,0.00032877,10]
[400057870,1767055858726,-376.253583,0.00035589,30]
[400057871,1767055858736,-303.3053281,0.00035863,30]
[400057872,1767055858746,-13469.25539546,0.00037692,20]
[400057873,1767055858757,-32161.65201535,0.00037692,20]
[400057874,1767055900169,210359.37298883,0.00013076,2]
[400057875,1767055902278,-589.57537573,0.00013076,2]
[400057876,1767055904876,-608.63334278,0.00013076,2]
[400057877,1767055909067,-258.40602491,0.00013076,2]
[400057878,1767055915183,-503.11240054,0.00013076,2]
[400057879,1767055918611,-200.13631066,0.00013076,2]
[400057880,1767055921132,-166.37790009,0.00013076,2]
[400057881,1767055921251,220.67713304,0.00013073,2]
[400057882,1767055922566,300.0,0.00013075,2]
[400057883,1767055924807,-260.38958332,0.00013076,2]
[400057884,1767055926875,-155.7024382,0.00013076,2]
[400057885,1767055928950,-267.36407505,0.00013076,2]
[400057886,1767055934624,-192.6775618,0.00013076,2]
[400057887,1767055936062,-151.96,0.00013076,2]
[400057888,1767055938035,-325.2294301,0.00013076,2]
[400057889,1767055941456,-305.91703775,0.00013076,2]
[400057890,1767055943164,-205.80722223,0.00013076,2]
[400057891,1767055943870,5859.9,0.00013076,2]
[400057892,1767055945187,-312.03513903,0.00013076,2]
[400057893,1767055950100,154.99,0.00012638,2]
[400057894,1767055950997,-531.82573339,0.00013076,2]
[400057895,1767055951954,1009.57394735,0.00013073,2]
[400057896,1767055954272,-207.30691018,0.00013076,2]
[400057897,1767055956949,-222.82779023,0.00013076,2]
[400057898,1767055959710,-218.71,0.00013076,2]
[400057899,1767055963356,-322.01555826,0.00013076,2]
[400057900,1767055965985,-221.47389519,0.00013076,2]
[400057901,1767055992576,1200.0,0.00013075,2]
[400057902,1767056006927,207.30691018,0.00013073,2]
[400057903,1767056027935,472.44,0.00012565,2]
[400057904,1767056042572,300.0,0.00013075,2]
[400057905,1767056043097,275.12200943,0.00013075,2]
[400057906,1767056043118,24.87799057,0.00013075,2]
[400057907,1767056048230,5000.0,0.00013076,2]
[400057908,1767056071668,500.0,0.00013075,2]
[400057909,1767056071704,500.0,0.00013075,2]
[400057910,1767056071742,500.0,0.00013075,2]
[400057911,1767056071772,500.0,0.00013075,2]
[400057912,1767056071799,405.21210215,0.00013075,2]
[400057913,1767056071831,500.0,0.00013075,2]
[400057914,1767056071876,500.0,0.00013075,2]
[400057915,1767056071909,500.0,0.00013075,2]
[400057916,1767056071946,197.32909889,0.00013075,2]
[400057917,1767056072164,500.0,0.00013075,2]
[400057918,1767056072605,372.59080839,0.00013075,2]
[400057919,1767056072628,127.40919161,0.00013075,2]
[400057920,1767056074872,500.0,0.00013075,2]
[400057921,1767056074902,500.0,0.00013075,2]
[400057922,1767056074930,500.0,0.00013075,2]
[400057923,1767056074958,500.0,0.00013075,2]
[400057924,1767056074991,500.0,0.00013075,2]
[400057925,1767056075020,500.0,0.00013075,2]
[400057926,1767056075054,500.0,0.00013075,2]
[400057927,1767056075097,500.0,0.00013075,2]
[400057928,1767056075127,500.0,0.00013075,2]
[400057929,1767056075154,500.0,0.00013075,2]
[400057930,1767056075185,500.0,0.00013075,2]
[400057931,1767056075213,500.0,0.00013075,2]
[400057932,1767056075241,500.0,0.00013075,2]
[400057933,1767056075271,500.0,0.00013075,2]
[400057934,1767056075304,500.0,0.00013075,2]
[400057935,1767056075332,500.0,0.00013075,2]
[400057936,1767056075363,500.0,0.00013075,2]
[400057937,1767056075391,500.0,0.00013075,2]
[400057938,1767056075421,500.0,0.00013075,2]
[400057939,1767056075449,372.60080839,0.00013075,2]
[400057940,1767056075586,127.39919161,0.00013075,2]
[400057941,1767056075624,500.0,0.00013075,2]
[400057942,1767056075652,500.0,0.00013075,2]
[400057943,1767056075680,500.0,0.00013075,2]
[400057944,1767056075711,500.0,0.00013075,2]
[400057945,1767056075745,500.0,0.00013075,2]
[400057946,1767056075775,500.0,0.00013075,2]
[400057947,1767056075803,500.0,0.00013075,2]
[400057948,1767056075831,500.0,0.00013075,2]
[400057949,1767056075862,500.0,0.00013075,2]
[400057950,1767056075908,500.0,0.00013075,2]
[400057951,1767056075936,500.0,0.00013075,2]
[400057952,1767056075965,500.0,0.00013075,2]
[400057953,1767056075992,500.0,0.00013075,2]
[400057954,1767056076021,500.0,0.00013075,2]
[400057955,1767056076050,476.22939494,0.00013075,2]
[400057956,1767056076077,626.2627694,0.00013075,2]
[400057957,1767056076105,500.0,0.00013075,2]
[400057958,1767056076133,500.0,0.00013075,2]
[400057959,1767056076162,500.0,0.00013075,2]
[400057960,1767056076194,270.11864405,0.00013075,2]
[400057961,1767056076216,229.88135595,0.00013075,2]
[400057962,1767056076257,500.0,0.00013075,2]
[400057963,1767056076285,212.30425037,0.00013075,2]
[400057964,1767056076317,500.0,0.00013075,2]
[400057965,1767056076346,500.0,0.00013075,2]
[400057966,1767056076374,500.0,0.00013075,2]
[400057967,1767056076402,500.0,0.00013075,2]
[400057968,1767056076430,500.0,0.00013075,2]
[400057969,1767056076458,500.0,0.00013075,2]
[400057970,1767056076485,500.0,0.00013075,2]
[400057971,1767056076515,500.0,0.00013075,2]
[400057972,1767056076542,500.0,0.00013075,2]
[400057973,1767056076578,500.0,0.00013075,2]
[400057974,1767056076607,500.0,0.00013075,2]
[400057975,1767056076634,500.0,0.00013075,2]
[400057976,1767056076663,500.0,0.00013075,2]
[400057977,1767056076691,500.0,0.00013075,2]
[400057978,1767056076720,500.0,0.00013075,2]
[400057979,1767056076748,500.0,0.00013075,2]
[400057980,1767056076775,500.0,0.00013075,2]
[400057981,1767056076809,500.0,0.00013075,2]
[400057982,1767056076840,57.82439368,0.00013075,2]
[400057983,1767056076864,442.17560632,0.00013075,2]
[400057984,1767056076892,500.0,0.00013075,2]
[400057985,1767056076923,500.0,0.00013075,2]
[400057986,1767056076950,500.0,0.00013075,2]
[400057987,1767056076977,228.46680442,0.00013075,2]
[400057988,1767056077006,500.0,0.00013075,2]
[400057989,1767056077037,500.0,0.00013075,2]
[400057990,1767056077068,500.0,0.00013075,2]
[400057991,1767056077096,500.0,0.00013075,2]
[400057992,1767056077124,500.0,0.00013075,2]
[400057993,1767056077152,500.0,0.00013075,2]
[400057994,1767056077182,500.0,0.00013075,2]
[400057995,1767056093597,5000.0,0.00013076,2]
[400057996,1767056099189,500.0,0.00013075,2]
[400057997,1767056099218,500.0,0.00013075,2]
[400057998,1767056099246,500.0,0.00013075,2]
[400057999,1767056099273,500.0,0.00013075,2]
[400058000,1767056099303,500.0,0.00013075,2]
[400058001,1767056099335,500.0,0.00013075,2]
[400058002,1767056099407,500.0,0.00013075,2]
[400058003,1767056099435,500.0,0.00013075,2]
[400058004,1767056099463,500.0,0.00013075,2]
[400058005,1767056099491,500.0,0.00013075,2]
[400058006,1767056099519,0.01,0.00013075,2]
[400058007,1767056099543,499.99,0.00013075,2]
[400058008,1767056099571,500.0,0.00013075,2]
[400058009,1767056099599,500.0,0.00013075,2]
[400058010,1767056099628,500.0,0.00013075,2]
[400058011,1767056099656,500.0,0.00013075,2]
[400058012,1767056099684,500.0,0.00013075,2]
[400058013,1767056099714,500.0,0.00013075,2]
[400058014,1767056101239,300.0,0.00013075,2]
[400058015,1767056102439,300.0,0.00013075,2]
[400058016,1767056102469,300.0,0.00013075,2]
[400058017,1767056104010,300.0,0.00013075,2]
[400058018,1767056107384,555.08,0.00012602,2]
[400058019,1767056113626,-9074.30758926,0.00013076,2]
[400058020,1767056113740,-10000.01,0.00013076,2]
[400058021,1767056113782,-10000.01,0.00013076,2]
[400058022,1767056117294,-5000.0,0.00012205,2]
[400058023,1767056117331,-0.01,0.00012329,2]
[400058024,1767056117420,-201.56,0.00012329,2]
[400058025,1767056117456,-9596.89,0.00013076,2]
[400058026,1767056117525,-10000.01,0.00013076,2]
[400058027,1767056117676,-10000.01,0.00013076,2]
[400058028,1767056117791,-10000.01,0.00013076,2]
[400058029,1767056117891,-10000.01,0.00013076,2]
[400058030,1767056120294,-10000.01,0.00013076,2]
[400058031,1767056120430,-10000.01,0.00013076,2]
[400058032,1767056120561,-10000.01,0.00013076,2]
[400058033,1767056120662,-10000.01,0.00013076,2]
[400058034,1767056129207,222.36,0.0001,2]
[400058035,1767056135701,167.97,0.00012329,2]
[400058036,1767056136378,-425.01692761,0.00012945,2]
[400058037,1767056137787,-540.76783046,0.00012945,2]
[400058038,1767056141171,-154.69,0.00012945,2]
[400058039,1767056141456,-3879.52524193,0.00012945,2]
[400058040,1767056142026,2240.95951614,0.00012945,2]
[400058041,1767056142049,2759.04048386,0.00012945,2]
[400058042,1767056146139,368.78,0.00012329,2]
[400058043,1767056156566,307.32,0.00012329,2]
[400058044,1767056156687,-3799.29075442,0.00013074,2]
[400058045,1767056158505,2401.42849116,0.00012945,2]
[400058046,1767056158529,2598.57150884,0.00012945,2]
[400058047,1767056166540,5000.0,0.00013074,2]
[400058048,1767056166953,256.1,0.00012329,2]
[400058049,1767056172004,-300.0,0.00013075,2]
[400058050,1767056177385,213.42,0.00012329,2]
[400058051,1767056182764,5000.0,0.00013075,2]
[400058052,1767056186227,835.61,0.00012678,2]
[400058053,1767056187836,177.85,0.00012329,2]
[400058054,1767056190564,5000.0,0.00013075,2]
[400058055,1767056198285,889.26,0.00012329,2]
[400058056,1767056206556,3932.9,0.00013076,2]
[400058057,1767056206578,1029.72206381,0.00013076,2]
[400058058,1767056214474,5000.0,0.00013076,2]
[400058059,1767056218244,-1598.74793619,0.00013076,2]
[400058060,1767056218329,-10000.01,0.00013076,2]
[400058061,1767056218458,-10000.01,0.00013076,2]
[400058062,1767056218560,-10000.01,0.00013076,2]